bitfinex/quotes_BTCUSD_20250602
["timestamp","ask_amount","ask_price","bid_price","bid_amount"]
[1748829350214,0.23267373,105440.0,105430.0,0.27252786]
[1748829353226,0.23267373,105440.0,105430.0,0.27252732]
[1748829354058,0.23248404,105440.0,105430.0,0.27252732]
[1748829355570,0.23248404,105440.0,105430.0,0.25355839]
[1748829356166,0.23248404,105440.0,105430.0,0.24407379]
[1748829356629,0.22300043,105440.0,105430.0,0.22807379]
[1748829359605,0.22300043,105440.0,105430.0,0.23755839]
[1748829359858,0.22300043,105440.0,105430.0,0.25365839]
[1748829360954,0.22300043,105440.0,105430.0,0.24417379]
[1748829361156,0.21351655,105440.0,105430.0,0.2185891]
[1748829361358,0.21351655,105440.0,105430.0,0.2022891]
[1748829362792,0.21351655,105440.0,105430.0,0.22707379]
[1748829363881,0.21351655,105440.0,105430.0,0.21177379]
[1748829365706,0.21351655,105440.0,105430.0,0.2368583]
[1748829365914,0.21351655,105440.0,105430.0,0.2529583]
[1748829366127,0.21351655,105440.0,105430.0,0.24347379]
[1748829366533,0.22299962,105440.0,105430.0,0.25295839]
[1748829366705,0.22299962,105440.0,105430.0,0.2624429]
[1748829368516,0.05228605,105440.0,105430.0,0.27192732]
[1748829368680,0.05228686,105440.0,105430.0,0.27192732]
[1748829369105,0.24196819,105440.0,105430.0,0.27192732]
[1748829369314,0.24196819,105440.0,105430.0,0.25582732]
[1748829369520,0.24196819,105440.0,105430.0,0.2463429]
[1748829369874,0.24196819,105440.0,105430.0,0.2307429]
[1748829370409,0.2324844,105440.0,105430.0,0.2307429]
[1748829370612,0.24401655,105440.0,105430.0,0.20228919]
[1748829370726,0.24401655,105440.0,105430.0,0.22125866]
[1748829372810,0.24401655,105440.0,105430.0,0.23074326]
[1748829373724,0.24401655,105440.0,105430.0,0.22125866]
[1748829374172,0.21351655,105440.0,105430.0,0.22125866]
[1748829375812,0.21351655,105440.0,105430.0,0.21177397]
[1748829376144,0.21351655,105440.0,105430.0,0.15486074]
[1748829376548,0.21351655,105440.0,105430.0,0.16434543]
[1748829381364,0.21351655,105440.0,105430.0,0.17382994]
[1748829381578,0.21351655,105440.0,105430.0,0.16434543]
[1748829384848,0.21351655,105440.0,105430.0,0.15486074]
[1748829388020,0.21351655,105440.0,105430.0,0.16434543]
[1748829388431,0.21351655,105440.0,105430.0,0.13589109]
[1748829388654,0.01454085,105420.0,105410.0,0.21245432]
[1748829388875,0.01454085,105420.0,105410.0,0.2498046]
[1748829388876,0.06032177,105420.0,105410.0,0.2498046]
[1748829389105,0.01454085,105420.0,105410.0,0.37735894]
[1748829389328,0.0335114,105420.0,105410.0,0.36846791]
[1748829389538,0.04299699,105420.0,105410.0,0.37735898]
[1748829389750,0.04299699,105420.0,105410.0,0.3773496]
[1748829389956,0.05296866,105420.0,105410.0,0.3793496]
[1748829390133,0.05296866,105420.0,105410.0,0.3823496]
[1748829390338,0.06245443,105420.0,105410.0,0.3823496]
[1748829390545,0.06245443,105420.0,105410.0,0.6749096]
[1748829390795,0.05296866,105420.0,105410.0,0.67490968]
[1748829390976,0.06245443,105420.0,105410.0,0.66602791]
[1748829391251,0.06245443,105420.0,105410.0,0.67482968]
[1748829391420,0.06245443,105420.0,105410.0,0.66594791]
[1748829391804,0.06245443,105420.0,105410.0,0.67113898]
[1748829392007,0.06245443,105420.0,105410.0,0.67113553]
[1748829392232,0.06245443,105420.0,105410.0,0.67113556]
[1748829392868,0.06245443,105420.0,105410.0,0.67113491]
[1748829393071,0.06245443,105420.0,105410.0,0.37869491]
[1748829393285,0.06245443,105420.0,105410.0,0.66225773]
[1748829393484,0.07173903,105420.0,105410.0,0.67113491]
[1748829394127,0.06225326,105420.0,105410.0,0.67113491]
[1748829394790,0.05276758,105420.0,105410.0,0.67113491]
[1748829394998,0.05276758,105420.0,105410.0,0.67113263]
[1748829395215,0.05276758,105420.0,105410.0,0.67113246]
[1748829396675,0.06225326,105420.0,105410.0,0.67113246]
[1748829396879,0.06225326,105420.0,105410.0,0.67113228]
[1748829397108,0.06225326,105420.0,105410.0,0.67113224]
[1748829397284,0.06225326,105420.0,105410.0,0.67113222]
[1748829397490,0.06225326,105420.0,105410.0,0.66197773]
[1748829397900,0.06225326,105420.0,105410.0,0.67081258]
[1748829398115,0.06225326,105420.0,105410.0,0.66193773]
[1748829398116,0.04328199,105420.0,105410.0,0.66193773]
[1748829398324,0.05276758,105420.0,105410.0,0.67081259]
[1748829398541,0.05276758,105420.0,105410.0,0.66193773]
[1748829398785,0.06225326,105420.0,105410.0,0.66193773]
[1748829399256,0.06225326,105420.0,105410.0,0.67081228]
[1748829399502,0.02431144,105420.0,105410.0,0.67081248]
[1748829399730,0.03379667,105420.0,105410.0,0.67081248]
[1748829399957,0.03379667,105420.0,105410.0,0.66193773]
[1748829400562,0.02431144,105420.0,105410.0,0.6655814]
[1748829400842,0.03379658,105420.0,105410.0,0.6655814]
[1748829401049,0.01502684,105420.0,105410.0,0.6655814]
[1748829401265,0.02451189,105420.0,105410.0,0.6655814]
[1748829403688,0.02451189,105420.0,105410.0,0.6656614]
[1748829404325,0.01502684,105420.0,105410.0,0.6656614]
[1748829404853,0.01502684,105420.0,105410.0,0.66566161]
[1748829405978,0.02451189,105420.0,105410.0,0.66566161]
[1748829406897,0.02451198,105420.0,105410.0,0.66566161]
[1748829407640,0.01502684,105420.0,105410.0,0.66566161]
[1748829408067,0.02451198,105420.0,105410.0,0.66566161]
[1748829408256,0.02451198,105420.0,105410.0,0.66201773]
[1748829409083,0.02451189,105420.0,105410.0,0.66201773]
[1748829409287,0.03399712,105420.0,105410.0,0.67089312]
[1748829409535,0.03399703,105420.0,105410.0,0.66201773]
[1748829409861,0.03399703,105420.0,105410.0,0.67089311]
[1748829410066,0.03399703,105420.0,105410.0,0.66201773]
[1748829410278,0.03399703,105420.0,105410.0,0.67089311]
[1748829410473,0.03399703,105420.0,105410.0,0.65519311]
[1748829410876,0.03399703,105420.0,105410.0,0.64631773]
[1748829411270,0.03399703,105420.0,105410.0,0.64996161]
[1748829411472,0.03399703,105420.0,105410.0,0.64964161]
[1748829412129,0.04348235,105420.0,105410.0,0.65851699]
[1748829412360,0.05296812,105420.0,105410.0,0.34176161]
[1748829412562,0.04348244,105420.0,105410.0,0.63376161]
[1748829412709,0.25217112,105420.0,105410.0,0.2327773]
[1748829412932,0.33697537,105420.0,105410.0,0.2043181]
[1748829413124,0.06649811,105420.0,105410.0,0.23277748]
[1748829413332,0.26570129,105420.0,105410.0,0.23277766]
[1748829413590,0.26570129,105420.0,105410.0,0.24226397]
[1748829413986,0.05701207,105420.0,105410.0,0.24226343]
[1748829414196,0.07598334,105420.0,105410.0,0.24226343]
[1748829414391,0.07598334,105420.0,105410.0,0.24590883]
[1748829414547,0.07598325,105420.0,105410.0,0.24226289]
[1748829414983,0.07598325,105420.0,105410.0,0.25114033]
[1748829415378,0.06649757,105420.0,105410.0,0.25114038]
[1748829415589,0.07598325,105420.0,105410.0,0.25114038]
[1748829415816,0.07598325,105420.0,105410.0,0.25114083]
[1748829416172,0.01502684,105420.0,105410.0,0.25114083]
[1748829416345,0.01502684,105420.0,105410.0,0.36704107]
[1748829416552,0.00048599,105420.0,105410.0,0.69034596]
[1748829416851,0.00048599,105420.0,105410.0,0.69156726]
[1748829417062,0.00048599,105420.0,105410.0,1.42670002]
[1748829417721,0.00048599,105420.0,105410.0,1.02670002]
[1748829418160,0.00048599,105420.0,105410.0,1.74328285]
[1748829419271,0.00048599,105420.0,105410.0,1.42667999]
[1748829420782,0.00048599,105420.0,105410.0,1.02667999]
[1748829421434,0.00048599,105420.0,105410.0,1.42667999]
[1748829422716,0.00048599,105420.0,105410.0,1.02667999]
[1748829422926,0.00048599,105420.0,105410.0,1.32313572]
[1748829425826,0.00048599,105420.0,105410.0,1.32313429]
[1748829429579,0.00048599,105420.0,105410.0,0.37497149]
[1748829429783,0.00048599,105420.0,105410.0,0.98293429]
[1748829429993,0.00048599,105420.0,105410.0,0.98657395]
[1748829430403,0.00048599,105420.0,105410.0,0.98657415]
[1748829431581,0.00048599,105420.0,105410.0,0.69517415]
[1748829431799,0.00048599,105420.0,105410.0,0.98649415]
[1748829432007,0.00048599,105420.0,105410.0,0.98649417]
[1748829432211,0.00048599,105420.0,105410.0,1.07641417]
[1748829432882,0.00048599,105420.0,105410.0,0.75985137]
[1748829433102,0.00048599,105420.0,105410.0,1.07641417]
[1748829433510,0.00048599,105420.0,105410.0,0.69517417]
[1748829433715,0.00048599,105420.0,105410.0,1.07637417]
[1748829433929,0.00048599,105420.0,105410.0,1.07637434]
[1748829437578,0.00048599,105420.0,105410.0,1.07273429]
[1748829438412,0.00048599,105420.0,105410.0,1.07637541]
[1748829438606,0.00048599,105420.0,105410.0,1.07273429]
[1748829439256,0.00048599,105420.0,105410.0,1.07278251]
[1748829440512,0.00048599,105420.0,105410.0,1.05718251]
[1748829440722,0.00048599,105420.0,105410.0,1.04078251]
[1748829441312,0.00048599,105420.0,105410.0,1.05698251]
[1748829441511,0.00048599,105420.0,105410.0,1.07268251]
[1748829441876,0.00048599,105420.0,105410.0,0.69148251]
[1748829442078,0.00048599,105420.0,105410.0,0.34175935]
[1748829442079,0.03399721,105420.0,105410.0,0.34175935]
[1748829442279,0.07518262,105420.0,105410.0,0.23641883]
[1748829442475,0.07518262,105420.0,105410.0,0.23641947]
[1748829442722,0.07518262,105420.0,105410.0,0.55303049]
[1748829442723,0.06569721,105420.0,105410.0,0.55303049]
[1748829443458,0.05621198,105420.0,105410.0,0.55303049]
[1748829446113,0.05621189,105420.0,105410.0,0.55303049]
[1748829446743,0.04672684,105420.0,105410.0,0.55303049]
[1748829446889,0.05621189,105420.0,105410.0,0.55303224]
[1748829447089,0.04672684,105420.0,105410.0,0.55303224]
[1748829447318,0.05621189,105420.0,105410.0,0.55303224]
[1748829447495,0.04672684,105420.0,105410.0,0.55303224]
[1748829447868,0.01502684,105420.0,105410.0,0.55303224]
[1748829450609,0.02451189,105420.0,105410.0,0.55303224]
[1748829450814,0.03102684,105420.0,105410.0,0.55303224]
[1748829451020,0.04722684,105420.0,105410.0,0.55303224]
[1748829451434,0.04722684,105420.0,105410.0,0.55303142]
[1748829452276,0.04722684,105420.0,105410.0,0.2364204]
[1748829452481,0.04722684,105420.0,105410.0,0.55303142]
[1748829453804,0.04722684,105420.0,105410.0,0.2364204]
[1748829454319,0.05671189,105420.0,105410.0,0.2364204]
[1748829455787,0.05671189,105420.0,105410.0,0.23642077]
[1748829456006,0.04722684,105420.0,105410.0,0.23642077]
[1748829456206,0.05671189,105420.0,105410.0,0.23642077]
[1748829456708,0.06619712,105420.0,105410.0,0.23642077]
[1748829457709,0.07568244,105420.0,105410.0,0.23642077]
[1748829458665,0.07568244,105420.0,105410.0,0.2453119]
[1748829458903,0.07568244,105420.0,105410.0,0.23642077]
[1748829459465,0.05671189,105420.0,105410.0,0.23642077]
[1748829459922,0.06619712,105420.0,105410.0,0.23642077]
[1748829460139,0.06619712,105420.0,105410.0,0.23642161]
[1748829461398,0.05671189,105420.0,105410.0,0.23642161]
[1748829461619,0.02451189,105420.0,105410.0,0.23642161]
[1748829462035,0.01502684,105420.0,105410.0,0.23642161]
[1748829463612,0.01502684,105420.0,105410.0,0.23642187]
[1748829464419,0.01502684,105420.0,105410.0,0.23277667]
[1748829464656,0.01502684,105420.0,105410.0,0.23642209]
[1748829466143,0.01502684,105420.0,105410.0,0.55303311]
[1748829466385,0.01502684,105420.0,105410.0,0.56813311]
[1748829466589,0.00048599,105420.0,105410.0,0.67918741]
[1748829466790,0.00048599,105420.0,105410.0,0.68404171]
[1748829467198,0.00048599,105420.0,105410.0,0.68039629]
[1748829470990,0.00048599,105420.0,105410.0,0.99700731]
[1748829471209,0.00048599,105420.0,105410.0,1.08039629]
[1748829473123,0.00048599,105420.0,105410.0,0.36378527]
[1748829473354,0.00048599,105420.0,105410.0,0.68039629]
[1748829477062,0.00048599,105420.0,105410.0,1.08039629]
[1748829479073,0.00048599,105420.0,105410.0,1.37107629]
[1748829479908,0.00048599,105420.0,105410.0,0.97107629]
[1748829484399,0.00048599,105420.0,105410.0,0.68039629]
[1748829484599,0.00048599,105420.0,105410.0,0.97103629]
[1748829490900,0.00048599,105420.0,105410.0,1.37103629]
[1748829491527,0.00048599,105420.0,105410.0,1.37211629]
[1748829492358,0.00048599,105420.0,105410.0,1.05009629]
[1748829492575,0.00048599,105420.0,105410.0,1.34177629]
[1748829492780,0.00048599,105420.0,105410.0,1.35697629]
[1748829494811,0.00048599,105420.0,105410.0,1.36586677]
[1748829494962,0.00048599,105420.0,105410.0,1.34177629]
[1748829495588,0.00048599,105420.0,105410.0,1.37207629]
[1748829498234,0.00048599,105420.0,105410.0,1.05546527]
[1748829498439,0.00048599,105420.0,105410.0,1.37207629]
[1748829499654,0.00048599,105420.0,105410.0,1.35677629]
[1748829499875,0.00048599,105420.0,105410.0,1.34177629]
[1748829500460,0.00048599,105420.0,105410.0,1.35717629]
[1748829504523,0.00048599,105420.0,105410.0,1.36606672]
[1748829504731,0.00048599,105420.0,105410.0,1.35717629]
[1748829505555,0.00048599,105420.0,105410.0,1.36606672]
[1748829505719,0.00048599,105420.0,105410.0,1.35717629]
[1748829506138,0.00048599,105420.0,105410.0,1.05686527]
[1748829506343,0.00048599,105420.0,105410.0,1.37347629]
[1748829507504,0.00048599,105420.0,105410.0,1.38236673]
[1748829508200,0.00048599,105420.0,105410.0,1.37347629]
[1748829509014,0.00048599,105420.0,105410.0,1.38236673]
[1748829509216,0.00048599,105420.0,105410.0,1.37347629]
[1748829510582,0.00048599,105420.0,105410.0,1.06575571]
[1748829510711,0.00048599,105420.0,105410.0,1.37347629]
[1748829512493,0.00048599,105420.0,105410.0,1.38236673]
[1748829512632,0.00048599,105420.0,105410.0,1.37347629]
[1748829514759,0.00048599,105420.0,105410.0,1.38236673]
[1748829514958,0.00048599,105420.0,105410.0,1.36606672]
[1748829515467,0.00048599,105420.0,105410.0,1.36606501]
[1748829515672,0.00048599,105420.0,105410.0,1.35066501]
[1748829516707,0.00048599,105420.0,105410.0,1.35066463]
[1748829516912,0.00048599,105420.0,105410.0,1.35066502]
[1748829517483,0.00048599,105420.0,105410.0,1.05898502]
[1748829517684,0.00048599,105420.0,105410.0,1.34990502]
[1748829519130,0.00048599,105420.0,105410.0,1.34990524]
[1748829519495,0.00048599,105420.0,105410.0,1.03329422]
[1748829519692,0.00048599,105420.0,105410.0,1.34990524]
[1748829519946,0.00048599,105420.0,105410.0,1.34990539]
[1748829520293,0.00048599,105420.0,105410.0,1.34101629]
[1748829521358,0.05115636,105420.0,105410.0,0.65009629]
[1748829521555,0.04167113,105420.0,105410.0,0.94974543]
[1748829521723,0.04167113,105420.0,105410.0,0.94085629]
[1748829522348,0.03218599,105420.0,105410.0,0.94974543]
[1748829522548,0.00048599,105420.0,105410.0,0.94974543]
[1748829522828,0.00048599,105420.0,105410.0,0.94085629]
[1748829523234,0.00997104,105420.0,105410.0,0.94085629]
[1748829523507,0.00048599,105420.0,105410.0,0.94085629]
[1748829524850,0.00048599,105420.0,105410.0,0.94974543]
[1748829525459,0.00048599,105420.0,105410.0,0.94085629]
[1748829525864,0.00048599,105420.0,105410.0,1.34974543]
[1748829526068,0.00048599,105420.0,105410.0,1.34085629]
[1748829527087,0.00048599,105420.0,105410.0,1.05898543]
[1748829527371,0.00048599,105420.0,105410.0,1.34057629]
[1748829528444,0.00048599,105420.0,105410.0,1.34946543]
[1748829528644,0.00048599,105420.0,105410.0,1.34057629]
[1748829529758,0.00048599,105420.0,105410.0,1.34946543]
[1748829529966,0.00048599,105420.0,105410.0,1.34057629]
[1748829531236,0.00048599,105420.0,105410.0,1.33572199]
[1748829531486,0.00048599,105420.0,105410.0,1.34461113]
[1748829531719,0.00048599,105420.0,105410.0,1.02397827]
[1748829531952,0.00048599,105420.0,105410.0,1.34058929]
[1748829532181,0.00048599,105420.0,105410.0,1.34947974]
[1748829532414,0.00048599,105420.0,105410.0,1.34058929]
[1748829532832,0.00048599,105420.0,105410.0,1.34947974]
[1748829533001,0.00048599,105420.0,105410.0,1.34058929]
[1748829533419,0.00048599,105420.0,105410.0,1.34947974]
[1748829533629,0.00048599,105420.0,105410.0,1.34058929]
[1748829535130,0.00048599,105420.0,105410.0,1.34947945]
[1748829535330,0.00048599,105420.0,105410.0,1.34058929]
[1748829535530,0.00048599,105420.0,105410.0,0.94058929]
[1748829535750,0.00048599,105420.0,105410.0,0.94947945]
[1748829535972,0.00048599,105420.0,105410.0,0.94058929]
[1748829536176,0.00048599,105420.0,105410.0,0.94947945]
[1748829536606,0.00048599,105420.0,105410.0,0.94058929]
[1748829538669,0.00048599,105420.0,105410.0,0.94947945]
[1748829538863,0.00048599,105420.0,105410.0,0.94058929]
[1748829539062,0.00048599,105420.0,105410.0,0.94947945]
[1748829539294,0.00048599,105420.0,105410.0,0.94058929]
[1748829539442,0.00048599,105420.0,105410.0,1.34058929]
[1748829539647,0.00048599,105420.0,105410.0,1.02397827]
[1748829539852,0.00048599,105420.0,105410.0,1.34947945]
[1748829540189,0.00048599,105420.0,105410.0,1.34058929]
[1748829540536,0.00048599,105420.0,105410.0,1.02397827]
[1748829540763,0.00048599,105420.0,105410.0,1.34058929]
[1748829541425,0.00048599,105420.0,105410.0,1.34050929]
[1748829542258,0.00048599,105420.0,105410.0,1.34939945]
[1748829542395,0.03188599,105420.0,105410.0,1.34050929]
[1748829542591,0.03188599,105420.0,105410.0,0.65010929]
[1748829542798,0.04137113,105420.0,105410.0,0.33349827]
[1748829543047,0.03188599,105420.0,105410.0,0.34238855]
[1748829543275,0.04137104,105420.0,105410.0,0.33714798]
[1748829543476,0.04137104,105420.0,105410.0,0.34603829]
[1748829543692,0.03188599,105420.0,105410.0,0.34603829]
[1748829543891,0.03188599,105420.0,105410.0,0.33714798]
[1748829544111,0.04137113,105420.0,105410.0,0.33714798]
[1748829544269,0.05085645,105420.0,105410.0,0.33714798]
[1748829544479,0.05085636,105420.0,105410.0,0.34603847]
[1748829544671,0.05085636,105420.0,105410.0,0.33714798]
[1748829545078,0.05085636,105420.0,105410.0,0.34117124]
[1748829545249,0.04137113,105420.0,105410.0,0.33228067]
[1748829545662,0.04137113,105420.0,105410.0,0.34117125]
[1748829545866,0.04137113,105420.0,105410.0,0.33228067]
[1748829546363,0.04137113,105420.0,105410.0,0.34117132]
[1748829546567,0.04137113,105420.0,105410.0,0.33228067]
[1748829546755,0.04137113,105420.0,105410.0,0.34117134]
[1748829546953,0.04137113,105420.0,105410.0,0.33228067]
[1748829547111,0.04137113,105420.0,105410.0,0.34117127]
[1748829547482,0.04137113,105420.0,105410.0,0.34116457]
[1748829547826,0.04137113,105420.0,105410.0,0.34116465]
[1748829548266,0.03188599,105420.0,105410.0,0.33228067]
[1748829548602,0.03188599,105420.0,105410.0,0.34116338]
[1748829548603,0.04137113,105420.0,105410.0,0.34116338]
[1748829549323,0.05085645,105420.0,105410.0,0.34116299]
[1748829549500,0.04137113,105420.0,105410.0,0.33751355]
[1748829549733,0.03188599,105420.0,105410.0,0.34116183]
[1748829549933,0.04137113,105420.0,105410.0,0.33227927]
[1748829550133,0.03188599,105420.0,105410.0,0.34116266]
[1748829550336,0.03188599,105420.0,105410.0,0.33227927]
[1748829550947,0.03188599,105420.0,105410.0,0.34116259]
[1748829551150,0.03188599,105420.0,105410.0,0.33227927]
[1748829551546,0.03188599,105420.0,105410.0,0.34116265]
[1748829551764,0.04137771,105420.0,105410.0,0.33227927]
[1748829552421,0.04137771,105420.0,105410.0,0.34116242]
[1748829552674,0.04137771,105420.0,105410.0,0.33227895]
[1748829553321,0.05086285,105420.0,105410.0,0.33227895]
[1748829553746,0.05086276,105420.0,105410.0,0.33227895]
[1748829553997,0.05086276,105420.0,105410.0,0.34116228]
[1748829554207,0.04137771,105420.0,105410.0,0.34116228]
[1748829554645,0.04137771,105420.0,105410.0,0.33227881]
[1748829555065,0.04137771,105420.0,105410.0,0.34116228]
[1748829556735,0.05086285,105420.0,105410.0,0.34116228]
[1748829556945,0.04137771,105420.0,105410.0,0.34116228]
[1748829557160,0.0603479,105420.0,105410.0,0.34116228]
[1748829557388,0.06983322,105420.0,105410.0,0.33227881]
[1748829557602,0.06983322,105420.0,105410.0,0.3411636]
[1748829557783,0.06983331,105420.0,105410.0,0.3411636]
[1748829557972,0.06983322,105420.0,105410.0,0.3411636]
[1748829558181,0.08437416,105420.0,105410.0,0.2453093]
[1748829558384,0.07488875,105420.0,105410.0,0.24530903]
[1748829558594,0.08437407,105420.0,105410.0,0.24530903]
[1748829559146,0.08437407,105420.0,105410.0,0.24530905]
[1748829559865,0.08437407,105420.0,105410.0,0.23642424]
[1748829560073,0.08437407,105420.0,105410.0,0.23142424]
[1748829560885,0.08437407,105420.0,105410.0,0.24030905]
[1748829561597,0.08437407,105420.0,105410.0,0.24030942]
[1748829561791,0.09385948,105420.0,105410.0,0.24030942]
[1748829561936,0.08437407,105420.0,105410.0,0.24030942]
[1748829562729,0.08437407,105420.0,105410.0,0.23666185]
[1748829562907,0.08437407,105420.0,105410.0,0.24919465]
[1748829563555,0.08437407,105420.0,105410.0,0.24030947]
[1748829564321,0.08437407,105420.0,105410.0,0.24919964]
[1748829564643,0.08437407,105420.0,105410.0,0.24030947]
[1748829565088,0.07488875,105420.0,105410.0,0.24030947]
[1748829565290,0.07488875,105420.0,105410.0,0.24919964]
[1748829565498,0.08437407,105420.0,105410.0,0.24919964]
[1748829566099,0.08437407,105420.0,105410.0,0.24030947]
[1748829567121,0.08437407,105420.0,105410.0,0.24920002]
[1748829567526,0.08437407,105420.0,105410.0,0.24030985]
[1748829567751,0.08437407,105420.0,105410.0,0.24920002]
[1748829568258,0.08437407,105420.0,105410.0,0.24030985]
[1748829568493,0.08437407,105420.0,105410.0,0.24920002]
[1748829569140,0.09385957,105420.0,105410.0,0.24920002]
[1748829569312,0.08437407,105420.0,105410.0,0.24920002]
[1748829569516,0.09385957,105420.0,105410.0,0.24920002]
[1748829569773,0.09385957,105420.0,105410.0,0.24030985]
[1748829570218,0.09385957,105420.0,105410.0,0.24920002]
[1748829570434,0.09385948,105420.0,105410.0,0.24920002]
[1748829571673,0.1033457,105420.0,105410.0,0.24030994]
[1748829571883,0.10334561,105420.0,105410.0,0.24979607]
[1748829572097,0.10334561,105420.0,105410.0,0.25868631]
[1748829572336,0.09385993,105420.0,105410.0,0.25868631]
[1748829572549,0.10334561,105420.0,105410.0,0.25868631]
[1748829572805,0.10334552,105420.0,105410.0,0.24979607]
[1748829573242,0.10334552,105420.0,105410.0,0.25868633]
[1748829573457,0.10334552,105420.0,105410.0,0.24979607]
[1748829573715,0.10334606,105420.0,105410.0,0.24979607]
[1748829574603,0.09386038,105420.0,105410.0,0.24979607]
[1748829575248,0.09386038,105420.0,105410.0,0.25868633]
[1748829576001,0.09386038,105420.0,105410.0,0.25868644]
[1748829576226,0.09386038,105420.0,105410.0,0.24979607]
[1748829576450,0.08437479,105420.0,105410.0,0.24979607]
[1748829576916,0.08437479,105420.0,105410.0,0.25868646]
[1748829577126,0.07488929,105420.0,105410.0,0.24979607]
[1748829577359,0.07488929,105420.0,105410.0,0.25868687]
[1748829577575,0.07488929,105420.0,105410.0,0.24979607]
[1748829577784,0.04348929,105420.0,105410.0,0.24979607]
[1748829578642,0.04348893,105420.0,105410.0,0.24979607]
[1748829578852,0.05297434,105420.0,105410.0,0.25868686]
[1748829579061,0.05297434,105420.0,105410.0,0.24979607]
[1748829579681,0.05297434,105420.0,105410.0,0.25868685]
[1748829579890,0.04348893,105420.0,105410.0,0.25868685]
[1748829580309,0.04348893,105420.0,105410.0,0.25503885]
[1748829580512,0.04348893,105420.0,105410.0,0.25868621]
[1748829581160,0.04348893,105420.0,105410.0,0.24979748]
[1748829581347,0.05297443,105420.0,105410.0,0.25868621]
[1748829581557,0.05297434,105420.0,105410.0,0.25868621]
[1748829581766,0.05297434,105420.0,105410.0,0.25868565]
[1748829582521,0.05297434,105420.0,105410.0,0.24979748]
[1748829583114,0.05297434,105420.0,105410.0,0.25868541]
[1748829583953,0.06927434,105420.0,105410.0,0.25868541]
[1748829584363,0.06927434,105420.0,105410.0,0.24979748]
[1748829584620,0.06927434,105420.0,105410.0,0.2586853]
[1748829584838,0.06927434,105420.0,105410.0,0.24979747]
[1748829585060,0.08507434,105420.0,105410.0,0.24979747]
[1748829585682,0.08507434,105420.0,105410.0,0.25868535]
[1748829585888,0.09455993,105420.0,105410.0,0.24979747]
[1748829586645,0.11350036,105420.0,105410.0,0.24979747]
[1748829586842,0.12298595,105420.0,105410.0,0.24979747]
[1748829587068,0.11350036,105420.0,105410.0,0.25868536]
[1748829587305,0.11350036,105420.0,105410.0,0.24979747]
[1748829587512,0.12298604,105420.0,105410.0,0.24979747]
[1748829588731,0.11350036,105420.0,105410.0,0.24979747]
[1748829588927,0.12298604,105420.0,105410.0,0.24979747]
[1748829589338,0.12298604,105420.0,105410.0,0.2497974]
[1748829590163,0.09456002,105420.0,105410.0,0.2497974]
[1748829591005,0.09456002,105420.0,105410.0,0.25868542]
[1748829591211,0.09456002,105420.0,105410.0,0.2497974]
[1748829591414,0.08507434,105420.0,105410.0,0.2497974]
[1748829591800,0.05297434,105420.0,105410.0,0.2497974]
[1748829592004,0.05297434,105420.0,105410.0,0.25868543]
[1748829592282,0.06245993,105420.0,105410.0,0.25868543]
[1748829592445,0.06245993,105420.0,105410.0,0.2497974]
[1748829593812,0.06245993,105420.0,105410.0,0.24979731]
[1748829594224,0.09455993,105420.0,105410.0,0.24979731]
[1748829594424,0.09455993,105420.0,105410.0,0.25868535]
[1748829594840,0.09455993,105420.0,105410.0,0.26757339]
[1748829595592,0.09455993,105420.0,105410.0,0.25868535]
[1748829595817,0.09455993,105420.0,105410.0,0.26757288]
[1748829596034,0.10404561,105420.0,105410.0,0.26757288]
[1748829596418,0.10404633,105420.0,105410.0,0.26757265]
[1748829597064,0.10404633,105420.0,105410.0,0.25868535]
[1748829597252,0.10404633,105420.0,105410.0,0.26757265]
[1748829597461,0.29376419,105420.0,105410.0,0.25808652]
[1748829597633,0.09456101,105420.0,105410.0,0.26757265]
[1748829597846,0.09456101,105420.0,105410.0,0.25868535]
[1748829598059,0.08506929,105420.0,105410.0,0.26757256]
[1748829598397,0.08506929,105420.0,105410.0,0.26757271]
[1748829598613,0.08506929,105420.0,105410.0,0.26757301]
[1748829598786,0.07558352,105420.0,105410.0,0.2586855]
[1748829599355,0.07558352,105420.0,105410.0,0.23971315]
[1748829599356,0.26530084,105420.0,105410.0,0.23971315]
[1748829599554,0.07558352,105420.0,105410.0,0.23971315]
[1748829599757,0.07558352,105420.0,105410.0,0.24919928]
[1748829600170,0.07558352,105420.0,105410.0,0.25808738]
[1748829600639,0.07558352,105420.0,105410.0,0.26697548]
[1748829600771,0.07558352,105420.0,105410.0,0.25808738]
[1748829600979,0.07558352,105420.0,105410.0,0.26697549]
[1748829601175,0.07558352,105420.0,105410.0,0.25808738]
[1748829601381,0.07558352,105420.0,105410.0,0.2580877]
[1748829601614,0.07558352,105420.0,105410.0,0.25443799]
[1748829601779,0.04348352,105420.0,105410.0,0.25808777]
[1748829602172,0.05296929,105420.0,105410.0,0.25808786]
[1748829602376,0.05296929,105420.0,105410.0,0.26757399]
[1748829602629,0.08041625,105420.0,105410.0,0.26757399]
[1748829602799,0.08386929,105420.0,105410.0,0.26757399]
[1748829603004,0.08386929,105420.0,105410.0,0.27646346]
[1748829603333,0.08386929,105420.0,105410.0,0.26757399]
[1748829603549,0.05296929,105420.0,105410.0,0.27646346]
[1748829603868,0.03399739,105420.0,105410.0,0.28277399]
[1748829604071,0.01502684,105420.0,105410.0,0.30746346]
[1748829604278,0.03399748,105420.0,105410.0,0.29857399]
[1748829604477,0.02451207,105420.0,105410.0,0.29857399]
[1748829604676,0.03399748,105420.0,105410.0,0.29857399]
[1748829604880,0.03399739,105420.0,105410.0,0.29857399]
[1748829605083,0.03399739,105420.0,105410.0,0.30746337]
[1748829605292,0.03399739,105420.0,105410.0,0.29492421]
[1748829605467,0.03399739,105420.0,105410.0,0.29857397]
[1748829606037,0.04348289,105420.0,105410.0,0.29857397]
[1748829606481,0.03399739,105420.0,105410.0,0.30746335]
[1748829606683,0.0434828,105420.0,105410.0,0.29857397]
[1748829606992,0.02451207,105420.0,105410.0,0.29857397]
[1748829607351,0.01502684,105420.0,105410.0,0.29857397]
[1748829607964,0.0339973,105420.0,105410.0,0.29857397]
[1748829608184,0.02451198,105420.0,105410.0,0.30746332]
[1748829608350,0.01502684,105420.0,105410.0,0.29857397]
[1748829608557,0.01502684,105420.0,105410.0,0.30746332]
[1748829608758,0.01502684,105420.0,105410.0,0.29857397]
[1748829609177,0.01502684,105420.0,105410.0,0.30746332]
[1748829609358,0.01502684,105420.0,105410.0,0.29857397]
[1748829609570,0.01502684,105420.0,105410.0,0.30746332]
[1748829609828,0.01502684,105420.0,105410.0,0.3074634]
[1748829610023,0.02451198,105420.0,105410.0,0.3074634]
[1748829610423,0.02451198,105420.0,105410.0,0.29857406]
[1748829610624,0.02451198,105420.0,105410.0,0.30746354]
[1748829610768,0.01502684,105420.0,105410.0,0.30746354]
[1748829610972,0.02451189,105420.0,105410.0,0.30746354]
[1748829611599,0.02451189,105420.0,105410.0,0.30746378]
[1748829612447,0.02451189,105420.0,105410.0,0.29857417]
[1748829612609,0.02451189,105420.0,105410.0,0.30746417]
[1748829613094,0.02451189,105420.0,105410.0,0.29857417]
[1748829613905,0.02451189,105420.0,105410.0,0.30746428]
[1748829614108,0.02451189,105420.0,105410.0,0.30746431]
[1748829614305,0.01502684,105420.0,105410.0,0.31635435]
[1748829614511,0.01502684,105420.0,105410.0,0.31635514]
[1748829614755,0.01502684,105420.0,105410.0,0.31939005]